bitfinex-derivatives/quotes_BTCF0:USTF0_20250114
["timestamp","ask_amount","ask_price","bid_price","bid_amount"]
[1736898121030,0.0427,96660.0,96659.0,0.413546]
[1736898124331,0.0427,96660.0,96659.0,0.42384961]
[1736898129827,0.00052001,96679.0,96678.0,0.051735]
[1736898130032,0.24764987,96680.0,96679.0,0.051735]
[1736898131741,0.00155212,96687.0,96686.0,0.051731]
[1736898133032,0.00855212,96687.0,96686.0,0.052731]
[1736898133742,0.01255212,96687.0,96686.0,0.052731]
[1736898134433,0.01255212,96687.0,96686.0,0.413531]
[1736898135739,0.011,96687.0,96686.0,0.413531]
[1736898155455,0.011,96687.0,96686.0,0.052731]
[1736898155655,0.011,96687.0,96686.0,0.413531]
[1736898156754,0.062731,96687.0,96686.0,0.001]
[1736898157348,0.062731,96687.0,96686.0,0.052731]
[1736898161157,0.12267668,96687.0,96686.0,0.052731]
[1736898162653,0.07094568,96687.0,96686.0,0.052731]
[1736898163262,0.011,96687.0,96686.0,0.052731]
[1736898164484,0.3608,96700.0,96686.0,0.052731]
[1736898164762,0.24764987,96705.0,96704.0,0.051722]
[1736898165666,0.05993629,96706.0,96705.0,0.051721]
[1736898167867,0.06093629,96706.0,96705.0,0.052721]
[1736898168357,0.06493629,96706.0,96705.0,0.053721]
[1736898168558,0.06493629,96706.0,96705.0,0.414521]
[1736898170066,0.005,96706.0,96705.0,0.414521]
[1736898171465,0.05672,96706.0,96705.0,0.414521]
[1736898180167,0.05672,96706.0,96705.0,0.053721]
[1736898186075,0.05672,96706.0,96705.0,0.002]
[1736898187671,0.05672,96706.0,96705.0,0.053721]
[1736898189579,0.11665456,96706.0,96705.0,0.053721]
[1736898205085,0.06493456,96706.0,96705.0,0.053721]
[1736898205291,0.24768477,96712.0,96711.0,0.051718]
[1736898205491,0.27864536,96718.0,96717.0,0.051715]
[1736898205987,0.06077206,96718.0,96717.0,0.051715]
[1736898206593,0.00155138,96726.0,96725.0,0.05171]
[1736898206791,0.00155138,96726.0,96725.0,0.41251]
[1736898207291,0.00155138,96726.0,96725.0,0.47481]
[1736898207885,0.051704,96738.0,96737.0,0.051704]
[1736898210692,0.36136001,96744.0,96733.0,0.3608]
[1736898210890,0.36136001,96744.0,96742.0,0.051701]
[1736898210891,0.11927741,96743.0,96742.0,0.051701]
[1736898211097,0.051701,96743.0,96742.0,0.051701]
[1736898212793,0.00052001,96744.0,96743.0,0.051701]
[1736898213095,0.051692,96759.0,96758.0,0.051693]
[1736898213298,0.051691,96764.0,96763.0,0.05169]
[1736898214794,0.055691,96764.0,96763.0,0.05269]
[1736898220386,0.055799,96764.0,96763.0,0.05269]
[1736898226296,0.055799,96764.0,96763.0,0.05369]
[1736898226788,0.055799,96764.0,96763.0,0.002]
[1736898233994,0.055799,96764.0,96763.0,0.05369]
[1736898234797,0.055799,96764.0,96763.0,0.002]
[1736898241110,0.055799,96764.0,96763.0,0.05369]
[1736898241306,0.004108,96764.0,96763.0,0.05369]
[1736898242500,0.004108,96764.0,96763.0,0.05269]
[1736898243202,0.11925741,96780.0,96778.0,0.051682]
[1736898243511,0.051681,96780.0,96778.0,0.051682]
[1736898244302,0.41299901,96785.0,96778.0,0.051682]
[1736898244511,0.36132001,96785.0,96778.0,0.052682]
[1736898244708,0.36132001,96785.0,96784.0,0.051679]
[1736898244709,0.3608,96785.0,96784.0,0.051679]
[1736898245503,0.051675,96792.0,96791.0,0.051674]
[1736898247820,0.051675,96792.0,96791.0,0.052674]
[1736898248004,0.051675,96792.0,96791.0,0.001]
[1736898269830,0.412475,96792.0,96791.0,0.001]
[1736898271329,0.1275951,96792.0,96791.0,0.001]
[1736898271519,0.4883951,96792.0,96791.0,0.001]
[1736898272128,0.4367201,96792.0,96772.0,0.0331]
[1736898272430,0.051685,96775.0,96774.0,0.051684]
[1736898276321,0.051685,96773.0,96772.0,0.0331]
[1736898276529,0.051687,96768.0,96767.0,0.21784598]
[1736898277624,0.051687,96768.0,96767.0,0.0326]
[1736898278428,0.052687,96768.0,96767.0,0.0326]
[1736898278628,0.052687,96768.0,96764.0,0.00155004]
[1736898278833,0.051689,96765.0,96764.0,0.00155004]
[1736898279926,0.412489,96765.0,96764.0,0.00155004]
[1736898281227,0.42283643,96765.0,96764.0,0.00155004]
[1736898289440,0.051698,96748.0,96747.0,0.0302]
[1736898289940,0.051698,96748.0,96747.0,0.081899]
[1736898290833,0.051698,96748.0,96747.0,0.082899]
[1736898292841,0.051698,96748.0,96747.0,0.0312]
[1736898293041,0.051698,96748.0,96747.0,0.001]
[1736898293841,0.06225069,96748.0,96747.0,0.001]
[1736898299448,0.051704,96737.0,96729.0,0.0324]
[1736898299649,0.051708,96730.0,96729.0,0.0324]
[1736898300542,0.051708,96730.0,96729.0,0.087108]
[1736898301042,0.051708,96730.0,96729.0,0.095108]
[1736898302343,0.051708,96730.0,96729.0,0.092108]
[1736898302544,0.051708,96730.0,96729.0,0.095108]
[1736898306455,0.36132001,96738.0,96729.0,0.095108]
[1736898306658,0.051705,96735.0,96734.0,0.051704]
[1736898309154,0.051705,96735.0,96734.0,0.057704]
[1736898309963,0.051698,96748.0,96734.0,0.057704]
[1736898310153,0.06734332,96744.0,96743.0,0.0517]
[1736898310454,0.051705,96740.0,96739.0,0.051703]
[1736898312560,0.051705,96740.0,96739.0,0.052703]
[1736898312864,0.051705,96740.0,96739.0,0.056703]
[1736898322461,0.051701,96743.0,96740.0,0.051702]
[1736898322667,0.051701,96743.0,96742.0,0.051701]
[1736898323669,0.36132001,96752.0,96740.0,0.0303]
[1736898323865,0.412496,96752.0,96751.0,0.051696]
[1736898324168,0.3608,96752.0,96751.0,0.051696]
[1736898325572,0.3618,96752.0,96751.0,0.051696]
[1736898326269,0.413496,96752.0,96751.0,0.051696]
[1736898326878,0.052696,96752.0,96751.0,0.051696]
[1736898332377,0.001,96752.0,96751.0,0.051696]
[1736898365191,0.3608,96772.0,96750.0,0.3608]
[1736898365395,0.3608,96772.0,96771.0,0.051686]
[1736898366189,0.39282001,96780.0,96779.0,0.051682]
[1736898366393,0.3923,96780.0,96779.0,0.051682]
[1736898368396,0.3923,96780.0,96779.0,0.052682]
[1736898369296,0.0315,96780.0,96779.0,0.052682]
[1736898372806,0.083181,96780.0,96779.0,0.052682]
[1736898373907,0.083181,96780.0,96779.0,0.001]
[1736898379107,0.051681,96780.0,96779.0,0.001]
[1736898382229,0.051688,96767.0,96766.0,0.051688]
[1736898384625,0.051688,96767.0,96752.0,0.394]
[1736898384828,0.051691,96763.0,96762.0,0.05169]
[1736898386029,0.053691,96763.0,96762.0,0.05169]
[1736898397948,0.051695,96753.0,96752.0,0.3608]
[1736898398244,0.051695,96753.0,96748.0,0.18610811]
[1736898398245,0.051698,96749.0,96748.0,0.18610811]
[1736898399140,0.0331,96755.0,96746.0,0.051699]
[1736898399343,0.051699,96747.0,96746.0,0.051699]
[1736898399537,0.412499,96747.0,96746.0,0.051699]
[1736898400346,0.412499,96747.0,96742.0,0.09839134]
[1736898400347,0.051701,96743.0,96742.0,0.09839134]
[1736898400538,0.051701,96743.0,96742.0,0.15009234]
[1736898401738,0.051701,96743.0,96742.0,0.15109234]
[1736898402537,0.051701,96743.0,96742.0,0.15409234]
[1736898403840,0.051701,96743.0,96742.0,0.004]
[1736898405548,0.06192625,96743.0,96742.0,0.004]
[1736898448675,0.23202525,96743.0,96718.0,0.0308]
[1736898448972,0.051713,96720.0,96718.0,0.0308]
[1736898450075,0.051713,96720.0,96718.0,0.082514]
[1736898450277,0.051713,96720.0,96719.0,0.0399]
[1736898451179,0.051713,96720.0,96719.0,0.096614]
[1736898453776,0.051713,96720.0,96719.0,0.0449]
[1736898456576,0.051713,96720.0,96719.0,0.00528611]
[1736898459781,0.051716,96714.0,96713.0,0.06892432]
[1736898459975,0.051716,96714.0,96713.0,0.051717]
[1736898460886,0.051716,96714.0,96713.0,0.057717]
[1736898461981,0.052716,96714.0,96713.0,0.066717]
[1736898472184,0.052716,96714.0,96713.0,0.06649423]
[1736898472491,0.001,96714.0,96713.0,0.06649423]
[1736898472990,0.001,96714.0,96713.0,0.015]
[1736898472991,0.052716,96714.0,96713.0,0.015]
[1736898473984,0.052716,96714.0,96713.0,0.014]
[1736898477302,0.06328342,96714.0,96713.0,0.014]
[1736898478007,0.06328342,96714.0,96713.0,0.011]
[1736898478308,0.06228342,96714.0,96713.0,0.002]
[1736898478513,0.06328342,96714.0,96713.0,0.009]
[1736898480514,0.06328342,96714.0,96713.0,0.060717]
[1736898488408,0.06328342,96714.0,96713.0,0.009]
[1736898493923,0.052716,96714.0,96713.0,0.009]
[1736898498019,0.052716,96714.0,96713.0,0.0069098]
[1736898505428,0.052716,96714.0,96713.0,0.0586268]
[1736898506621,0.001,96714.0,96713.0,0.0586268]
[1736898508028,0.052716,96714.0,96713.0,0.0586268]
[1736898509831,0.052716,96714.0,96713.0,0.0069098]
[1736898526237,0.051722,96703.0,96702.0,0.051722]
[1736898526736,0.051724,96700.0,96699.0,0.18606796]
[1736898527440,0.032,96702.0,96695.0,0.01427176]
[1736898527636,0.051726,96696.0,96695.0,0.01427176]
[1736898527837,0.051726,96696.0,96695.0,0.06599776]
[1736898527838,0.412526,96696.0,96695.0,0.06599776]
[1736898528031,0.051726,96696.0,96695.0,0.01427176]
[1736898528236,0.051726,96696.0,96695.0,0.07623829]
[1736898528443,0.044726,96696.0,96695.0,0.07623829]
[1736898528638,0.001,96703.0,96695.0,0.07623829]
[1736898528839,0.001,96703.0,96702.0,0.051723]
[1736898529045,0.00052001,96705.0,96704.0,0.051722]
[1736898529231,0.3712089,96714.0,96704.0,1.5]
[1736898529434,0.3712089,96714.0,96713.0,0.051717]
[1736898529644,0.3608,96714.0,96713.0,0.051717]
[1736898530436,0.051715,96716.0,96715.0,0.051716]
[1736898531046,0.051713,96721.0,96720.0,0.051712]
[1736898531246,0.36136001,96725.0,96710.0,0.051718]
[1736898531447,0.41251,96725.0,96724.0,0.051711]
[1736898531847,0.051714,96720.0,96719.0,0.051713]
[1736898532647,0.051718,96710.0,96709.0,0.3608]
[1736898533446,0.051718,96710.0,96709.0,0.412519]
[1736898533844,0.0314,96716.0,96702.0,0.18606796]
[1736898534143,0.051722,96703.0,96702.0,0.18606796]
[1736898534838,0.051722,96703.0,96693.0,0.00155123]
[1736898535149,0.412526,96696.0,96693.0,0.00155123]
[1736898537449,0.051727,96694.0,96693.0,0.00155123]
[1736898537949,0.05173,96689.0,96688.0,0.05173]
[1736898538640,0.051727,96694.0,96678.0,0.18606796]
[1736898538850,0.051727,96694.0,96683.0,0.051732]
[1736898538851,0.051733,96684.0,96683.0,0.051732]
[1736898540143,0.052733,96684.0,96683.0,0.051732]
[1736898540744,0.052733,96684.0,96683.0,0.053732]
[1736898540939,0.052733,96684.0,96683.0,0.002]
[1736898541146,0.413533,96684.0,96683.0,0.002]
[1736898541751,0.413533,96684.0,96673.0,0.051738]
[1736898541952,0.051738,96674.0,96673.0,0.051738]
[1736898543149,0.052738,96674.0,96673.0,0.054738]
[1736898556857,0.001,96674.0,96654.0,0.3608]
[1736898557058,0.001,96674.0,96661.0,0.051745]
[1736898557059,0.051744,96662.0,96661.0,0.051745]
[1736898559969,0.36132001,96665.0,96655.0,0.00155178]
[1736898560167,0.051747,96658.0,96657.0,0.051747]
[1736898571274,0.06199564,96658.0,96657.0,0.051747]
[1736898580784,0.42279564,96658.0,96657.0,0.051747]
[1736898583886,0.412547,96658.0,96657.0,0.051747]
[1736898585280,0.051747,96658.0,96657.0,0.051747]
[1736898586886,0.05166826,96658.0,96657.0,0.051747]
[1736898592690,0.08286826,96658.0,96657.0,0.051747]
[1736898597887,0.051749,96653.0,96652.0,0.23781696]
[1736898598187,0.392,96658.0,96647.0,0.24809062]
[1736898598393,0.1350151,96657.0,96647.0,0.24809062]
[1736898598590,0.051752,96648.0,96647.0,0.24809062]
[1736898599389,0.051752,96648.0,96646.0,0.051753]
[1736898599390,0.051752,96647.0,96646.0,0.051753]
[1736898599587,0.082552,96647.0,96646.0,0.051753]
[1736898600296,0.0308,96647.0,96643.0,0.18630407]
[1736898600493,0.0308,96647.0,96640.0,0.3608]
[1736898600494,0.051754,96644.0,96641.0,0.18630407]
[1736898600699,0.3608,96642.0,96636.0,0.24809062]
[1736898600897,0.051757,96638.0,96636.0,0.24809062]
[1736898601087,0.051757,96638.0,96637.0,0.05330906]
[1736898601285,0.3608,96642.0,96641.0,0.051755]
[1736898602498,0.3578,96642.0,96641.0,0.051755]
[1736898602799,0.409555,96642.0,96641.0,0.051755]
[1736898603100,0.410555,96642.0,96641.0,0.051755]
[1736898603700,0.410555,96642.0,96641.0,0.054755]
[1736898607601,0.052755,96642.0,96641.0,0.054755]
[1736898610498,0.051761,96632.0,96620.0,0.24809062]
[1736898610702,0.051766,96621.0,96620.0,0.24809062]
[1736898611299,0.412566,96621.0,96620.0,0.24809062]
[1736898612192,0.412566,96621.0,96612.0,0.01041064]
[1736898612193,0.051768,96618.0,96613.0,0.01020208]
[1736898612390,0.051768,96618.0,96617.0,0.051768]
[1736898613700,0.052768,96618.0,96617.0,0.051768]
[1736898614399,0.052768,96618.0,96617.0,0.054768]
[1736898615807,0.052768,96618.0,96617.0,0.003]
[1736898625613,0.052768,96618.0,96617.0,0.054768]
[1736898627415,0.052768,96618.0,96617.0,0.003]
[1736898629728,0.052768,96618.0,96617.0,0.054768]
[1736898640645,0.082461,96631.0,96617.0,0.003]
[1736898640840,0.06750755,96630.0,96629.0,0.051761]
[1736898641041,0.06750755,96630.0,96625.0,0.3608]
[1736898641042,0.412559,96634.0,96633.0,0.05176]
[1736898641244,0.41311901,96634.0,96633.0,0.05176]
[1736898641444,0.3608,96634.0,96633.0,0.05176]
[1736898641942,0.43374352,96640.0,96639.0,0.051756]
[1736898642146,0.1867711,96640.0,96639.0,0.051756]
[1736898642346,0.051756,96640.0,96639.0,0.051756]
[1736898644741,0.052756,96640.0,96639.0,0.051756]
[1736898651645,0.3618,96640.0,96612.0,0.00155255]
[1736898651849,0.412569,96616.0,96612.0,0.00155255]
[1736898652658,0.05177,96613.0,96612.0,0.00155255]
[1736898653858,0.05277,96613.0,96612.0,0.00155255]
[1736898654953,0.051775,96605.0,96604.0,0.051775]
[1736898655258,0.412575,96605.0,96604.0,0.051775]
[1736898656660,0.413575,96605.0,96604.0,0.054775]
[1736898675671,0.413575,96605.0,96604.0,0.06504942]
[1736898676173,0.413575,96605.0,96604.0,0.054775]
[1736898683383,0.00052001,96605.0,96604.0,0.415575]
[1736898683576,0.00155291,96625.0,96605.0,0.051775]
[1736898683773,0.00155291,96625.0,96624.0,0.051764]
[1736898684171,0.2208,96631.0,96630.0,0.051761]
[1736898684583,0.3608,96636.0,96630.0,0.051761]
[1736898684584,0.3608,96636.0,96635.0,0.051759]
[1736898684768,0.24645241,96644.0,96643.0,0.051754]
[1736898685583,0.36140001,96648.0,96643.0,0.051754]
[1736898685777,0.3608,96648.0,96647.0,0.051752]
[1736898687181,0.3638,96648.0,96647.0,0.051752]
[1736898687376,0.003,96648.0,96647.0,0.051752]
[1736898687888,0.005,96648.0,96647.0,0.051752]
[1736898729710,0.005,96648.0,96647.0,0.23811746]
[1736898732009,0.005,96648.0,96647.0,0.051752]
[1736898742318,0.005,96648.0,96647.0,0.2381212]
[1736898743114,0.005,96648.0,96647.0,0.5989212]
[1736898749022,0.005,96648.0,96647.0,0.412552]
[1736898754728,0.00155226,96674.0,96647.0,0.713552]
[1736898754934,0.00155226,96674.0,96671.0,0.051739]
[1736898755831,0.0328,96676.0,96671.0,0.051739]
[1736898756734,0.0328,96676.0,96675.0,0.051737]
[1736898757634,0.0645,96681.0,96675.0,0.051737]
[1736898757840,0.0325,96681.0,96680.0,0.051734]
[1736898759034,0.0485,96681.0,96680.0,0.052734]
[1736898759433,0.016,96681.0,96680.0,0.052734]
[1736898759741,0.016,96681.0,96680.0,0.413534]
[1736898776055,0.016,96681.0,96680.0,0.052734]
[1736898776234,0.016,96681.0,96680.0,0.413534]
[1736898782141,0.016,96681.0,96680.0,0.052734]
[1736898782447,0.051739,96672.0,96666.0,0.01037813]
[1736898782642,0.051739,96672.0,96660.0,0.00155172]
[1736898782643,0.0654,96671.0,96667.0,0.23778266]
[1736898782838,0.0654,96671.0,96668.0,0.05174]
[1736898783243,0.0654,96671.0,96669.0,0.05174]
[1736898784446,0.0714,96671.0,96669.0,0.05274]
[1736898784749,0.0714,96671.0,96670.0,0.05174]
[1736898784950,0.0804,96671.0,96670.0,0.05174]
[1736898785953,0.0714,96671.0,96670.0,0.05174]
[1736898786151,0.0804,96671.0,96670.0,0.05174]
[1736898786449,0.0744,96671.0,96670.0,0.05174]
[1736898786648,0.0804,96671.0,96670.0,0.05374]
[1736898787156,0.09068898,96671.0,96670.0,0.05374]
[1736898787554,0.14242798,96671.0,96670.0,0.05374]
[1736898789652,0.14242798,96671.0,96670.0,0.002]
[1736898789845,0.051743,96665.0,96662.0,0.051744]
[1736898790655,0.3608,96666.0,96662.0,0.051744]
[1736898790847,0.051744,96663.0,96662.0,0.051744]
[1736898791248,0.051744,96663.0,96662.0,0.052744]
[1736898792944,0.058744,96663.0,96662.0,0.052744]
[1736898793759,0.058744,96663.0,96662.0,0.053744]
[1736898794362,0.058744,96663.0,96662.0,0.052744]
[1736898794662,0.063744,96663.0,96662.0,0.053744]
[1736898796460,0.063744,96663.0,96662.0,0.002]
[1736898809961,0.424544,96663.0,96662.0,0.002]
[1736898812173,0.424544,96663.0,96662.0,0.053744]
[1736898816972,0.012,96663.0,96662.0,0.053744]
[1736898818377,0.063744,96663.0,96662.0,0.053744]
[1736898818570,0.012,96663.0,96662.0,0.053744]
[1736898822568,0.063744,96663.0,96662.0,0.053744]
[1736898824666,0.063744,96663.0,96662.0,0.002]
[1736898825476,0.12370568,96663.0,96662.0,0.002]
[1736898847697,0.07196168,96663.0,96662.0,0.053744]
[1736898847900,0.07196168,96663.0,96662.0,0.06421063]
[1736898848296,0.06996168,96663.0,96662.0,0.06421063]
[1736898848699,0.01,96663.0,96662.0,0.06521063]
[1736898848891,0.3608,96675.0,96674.0,0.051738]
[1736898850698,0.3608,96675.0,96674.0,0.052738]
[1736898850896,0.3668,96675.0,96674.0,0.052738]
[1736898851208,0.3758,96675.0,96674.0,0.053738]
[1736898853095,0.015,96675.0,96674.0,0.053738]
[1736898853290,0.58212001,96694.0,96674.0,0.053738]
[1736898853291,0.3608,96694.0,96674.0,0.354738]
[1736898853494,0.05172,96707.0,96706.0,0.051721]
[1736898853896,0.0624,96710.0,96693.0,0.051728]
[1736898854094,0.0624,96710.0,96687.0,0.0628]
[1736898854095,0.12990679,96710.0,96709.0,0.051719]
[1736898854295,0.0303,96710.0,96709.0,0.051719]
[1736898856000,0.0323,96710.0,96709.0,0.051719]
[1736898856898,0.0363,96710.0,96709.0,0.051719]
[1736898857707,0.006,96710.0,96709.0,0.051719]
[1736898858614,0.0373,96710.0,96709.0,0.051719]
[1736898860606,0.0363,96710.0,96709.0,0.051719]
[1736898862609,0.0393,96710.0,96709.0,0.051719]
[1736898863108,0.0343,96710.0,96709.0,0.051719]
[1736898863407,0.0393,96710.0,96709.0,0.051719]
[1736898863601,0.091018,96710.0,96709.0,0.051719]
[1736898863797,0.087018,96710.0,96709.0,0.051719]
[1736898865913,0.092018,96710.0,96709.0,0.051719]
[1736898866508,0.088018,96710.0,96709.0,0.051719]
[1736898866705,0.092018,96710.0,96709.0,0.051719]
[1736898867307,0.088018,96710.0,96709.0,0.051719]
[1736898867502,0.092018,96710.0,96709.0,0.051719]
[1736898868104,0.088018,96710.0,96709.0,0.051719]
[1736898868306,0.087018,96710.0,96709.0,0.051719]
[1736898868609,0.092018,96710.0,96709.0,0.051719]
[1736898869214,0.452818,96710.0,96709.0,0.051719]
[1736898870203,0.051723,96703.0,96700.0,0.051724]
[1736898870406,0.53667359,96710.0,96695.0,0.3608]
[1736898870604,0.13501358,96705.0,96695.0,0.412526]
[1736898871011,0.051726,96696.0,96695.0,0.412526]
[1736898871221,0.051726,96696.0,96695.0,0.051726]
[1736898872114,0.051726,96696.0,96695.0,0.052726]
[1736898873622,0.052726,96696.0,96695.0,0.052726]
[1736898874408,0.051726,96696.0,96695.0,0.052726]
[1736898874616,0.001,96696.0,96664.0,0.412543]
[1736898874814,0.06750679,96681.0,96668.0,0.23713404]
[1736898875008,0.0323,96680.0,96679.0,0.051735]
[1736898875516,0.084034,96680.0,96679.0,0.051735]
[1736898876507,0.084034,96680.0,96679.0,0.055735]
[1736898877319,0.085034,96680.0,96679.0,0.055735]
[1736898877708,0.085034,96680.0,96679.0,0.004]
[1736898878419,0.085034,96680.0,96679.0,0.002]
[1736898879020,0.085034,96680.0,96678.0,0.051735]
[1736898879919,0.051735,96679.0,96678.0,0.051735]
[1736898881312,0.052735,96679.0,96678.0,0.051735]
[1736898882719,0.413535,96679.0,96678.0,0.051735]
[1736898883926,0.412535,96679.0,96678.0,0.051735]
[1736898884128,0.414535,96679.0,96678.0,0.051735]
[1736898885025,0.415535,96679.0,96678.0,0.051735]
[1736898885620,0.414535,96679.0,96678.0,0.051735]
[1736898885925,0.412535,96679.0,96678.0,0.051735]
[1736898886226,0.413535,96679.0,96678.0,0.051735]
[1736898895333,0.3618,96679.0,96678.0,0.051735]
[1736898898226,0.001,96679.0,96678.0,0.051735]
[1736898900124,0.052735,96679.0,96678.0,0.051735]
[1736898900434,0.001,96679.0,96678.0,0.051735]
[1736898909535,0.3618,96679.0,96678.0,0.051735]
[1736898918651,0.413535,96679.0,96678.0,0.051735]
[1736898919350,0.052735,96679.0,96678.0,0.051735]
[1736898919640,0.413535,96679.0,96678.0,0.051735]
[1736898919831,0.052735,96679.0,96678.0,0.051735]
[1736898920032,0.413535,96679.0,96678.0,0.051735]
[1736898927344,0.413535,96679.0,96678.0,0.05163315]
[1736898927936,0.3618,96679.0,96678.0,0.05163315]
[1736898932960,0.413535,96679.0,96678.0,0.05163315]
[1736898933152,0.47348411,96679.0,96678.0,0.05163315]
[1736898934448,0.42174911,96679.0,96678.0,0.05163315]
[1736898935258,0.3618,96679.0,96678.0,0.05163315]
[1736898938355,0.001,96679.0,96678.0,0.05163315]
[1736898938546,0.052735,96679.0,96678.0,0.05163315]
[1736898949863,0.001,96679.0,96678.0,0.05163315]
[1736898954670,0.052735,96679.0,96678.0,0.05163315]
[1736898955370,0.052735,96679.0,96674.0,0.18552571]
[1736898955371,0.051737,96675.0,96674.0,0.18552571]
[1736898955570,0.051737,96675.0,96674.0,0.08572571]
[1736898955773,0.05174,96670.0,96669.0,0.24736761]
[1736898956068,0.41254,96670.0,96669.0,0.24736761]
[1736898956759,0.41254,96670.0,96664.0,0.30920952]
[1736898956760,0.051743,96665.0,96664.0,0.30920952]
[1736898956965,0.42127667,96670.0,96662.0,0.051744]
[1736898957165,0.0303,96664.0,96662.0,0.051744]
[1736898957467,0.0303,96664.0,96654.0,0.24736761]
[1736898957665,0.051746,96658.0,96657.0,0.05329765]
[1736898957866,0.051746,96658.0,96657.0,0.00155165]
[1736898959872,0.052746,96658.0,96657.0,0.00155165]
[1736898967976,0.001,96658.0,96657.0,0.00155165]
[1736898968287,0.001,96658.0,96657.0,0.05329865]
[1736898972290,0.052746,96658.0,96657.0,0.05329865]
[1736898972490,0.052746,96658.0,96657.0,0.051747]
[1736898979591,0.001,96658.0,96657.0,0.051747]
[1736898980190,0.001,96658.0,96657.0,0.05069819]
[1736898996009,0.06096159,96658.0,96657.0,0.05069819]
[1736898997009,0.001,96658.0,96657.0,0.05069819]
[1736899000310,0.052746,96658.0,96657.0,0.05069819]
[1736899007019,0.052746,96658.0,96657.0,0.05069819]
[1736899007519,0.11270619,96658.0,96657.0,0.05069819]
[1736899014916,0.052746,96658.0,96657.0,0.05069819]
[1736899017629,0.11270625,96658.0,96657.0,0.05069819]
[1736899019721,0.051747,96656.0,96654.0,0.051748]
[1736899020527,0.051747,96656.0,96655.0,0.051748]
[1736899021828,0.051747,96656.0,96655.0,0.052748]
[1736899022024,0.11270739,96656.0,96655.0,0.052748]
[1736899022840,0.11270739,96656.0,96644.0,0.28090892]
[1736899022841,0.11270739,96656.0,96644.0,0.24770892]
[1736899023129,0.412553,96645.0,96644.0,0.24770892]
[1736899024435,0.412553,96645.0,96644.0,0.25370892]
[1736899024729,0.47251339,96645.0,96644.0,0.006]
[1736899024933,0.412553,96645.0,96644.0,0.006]
[1736899025941,0.412553,96645.0,96644.0,0.007]
[1736899026126,0.47252578,96645.0,96644.0,0.007]
[1736899027536,0.48289784,96645.0,96644.0,0.007]
[1736899029132,0.42292506,96645.0,96644.0,0.007]
[1736899039938,0.42292506,96645.0,96635.0,0.051758]
[1736899039939,0.051759,96636.0,96635.0,0.051758]
[1736899040140,0.412559,96636.0,96635.0,0.051758]
[1736899041041,0.413559,96636.0,96635.0,0.060758]
[1736899041430,0.413559,96636.0,96635.0,0.063758]
[1736899043441,0.413559,96636.0,96635.0,0.012]
[1736899044442,0.413559,96636.0,96622.0,0.051766]
[1736899044443,0.051769,96616.0,96608.0,0.3608]
[1736899044741,0.3608,96619.0,96611.0,0.24708419]
[1736899044943,0.051771,96612.0,96611.0,0.24708419]
[1736899045544,0.404571,96612.0,96611.0,0.24708419]
[1736899045744,0.404571,96612.0,96598.0,0.37310257]
[1736899045745,0.051775,96605.0,96598.0,0.051778]
[1736899046039,0.3608,96599.0,96598.0,0.051778]
[1736899046235,0.3608,96599.0,96598.0,0.06194131]
[1736899048337,0.3618,96599.0,96598.0,0.06194131]
[1736899048537,0.408578,96599.0,96598.0,0.06194131]
[1736899049541,0.408578,96599.0,96598.0,0.06594131]
[1736899053950,0.408578,96599.0,96598.0,0.01416331]
[1736899054949,0.052778,96599.0,96598.0,0.004]
[1736899062645,0.052778,96599.0,96594.0,0.01016868]
[1736899062847,0.052778,96599.0,96598.0,0.004]
[1736899064552,0.001,96599.0,96594.0,0.004]
[1736899064850,0.05178,96595.0,96594.0,0.004]
[1736899065357,0.047781,96594.0,96592.0,0.09197002]
[1736899066055,0.001,96599.0,96594.0,0.004]
[1736899066252,0.001,96595.0,96594.0,0.004]
[1736899067758,0.05178,96595.0,96594.0,0.004]
[1736899068156,0.051781,96593.0,96592.0,0.01008802]
[1736899068360,0.051781,96593.0,96592.0,0.004]
[1736899068565,0.412581,96593.0,96592.0,0.004]
[1736899069456,0.413581,96593.0,96592.0,0.004]
[1736899069658,0.409581,96593.0,96590.0,0.051783]
[1736899070254,0.051783,96590.0,96585.0,0.051785]
[1736899070459,0.051783,96590.0,96589.0,0.051782]
[1736899071056,0.36232001,96593.0,96584.0,0.0316]
[1736899071258,0.413581,96593.0,96591.0,0.051782]
[1736899071450,0.413581,96593.0,96592.0,0.004]
[1736899072060,0.001,96593.0,96591.0,0.051782]
[1736899072358,0.051782,96592.0,96591.0,0.051782]
[1736899072565,0.36332001,96593.0,96592.0,0.051782]
[1736899072753,0.3618,96593.0,96592.0,0.051782]
[1736899072955,0.3618,96593.0,96592.0,0.055782]
[1736899074465,0.3608,96593.0,96592.0,0.055782]
[1736899074862,0.3618,96593.0,96592.0,0.055782]
[1736899075064,0.001,96593.0,96592.0,0.055782]
[1736899077167,0.052781,96593.0,96592.0,0.055782]
[1736899078570,0.001,96593.0,96592.0,0.055782]
[1736899080668,0.052781,96593.0,96592.0,0.055782]
[1736899085768,0.001,96593.0,96592.0,0.055782]
[1736899089178,0.36136001,96600.0,96599.0,0.051778]
[1736899089376,0.3608,96608.0,96607.0,0.051774]
[1736899091476,0.3608,96608.0,96607.0,0.052774]
[1736899091777,0.3618,96608.0,96607.0,0.052774]
[1736899093682,0.3618,96608.0,96607.0,0.051774]
[1736899093877,0.3628,96608.0,96607.0,0.051774]
[1736899094781,0.3618,96608.0,96607.0,0.051774]
[1736899095879,0.051778,96599.0,96598.0,0.051778]
[1736899096379,0.051778,96599.0,96581.0,0.17520249]
[1736899096380,0.051778,96598.0,96595.0,0.051779]
[1736899096586,0.083378,96598.0,96595.0,0.051779]
[1736899097175,0.0615,96598.0,96595.0,0.051779]